bitfinex-derivatives/quotes_ETHF0:USTF0_20250803
["timestamp","ask_amount","ask_price","bid_price","bid_amount"]
[1754194069694,3.73530019,3437.6,3437.5,1.2678]
[1754194069889,3.73530019,3437.6,3437.5,1.4659]
[1754194080308,1.8707,3437.6,3437.5,1.7812]
[1754194080501,4.2667,3438.0,3437.9,2.04772]
[1754194080700,5.0785,3438.0,3437.9,2.04772]
[1754194080908,5.0785,3438.0,3437.9,1.4659]
[1754194081610,3.4118,3438.4,3438.3,0.58174]
[1754194081905,5.9254663,3438.4,3438.3,1.5277]
[1754194082406,5.9254663,3438.4,3438.3,0.9953]
[1754194083107,4.0623663,3438.4,3438.3,1.8474]
[1754194083308,3.2078,3438.9,3438.8,1.8474]
[1754194083606,1.0,3439.0,3438.9,2.42905]
[1754194083910,1.85503547,3439.0,3438.9,5.63685]
[1754194084103,4.89693645,3439.7,3439.6,1.36643]
[1754194084407,3.8551,3439.7,3439.6,1.36643]
[1754194084706,3.5313,3439.7,3439.6,1.36643]
[1754194084905,0.204,3439.9,3439.6,0.88633]
[1754194085106,0.3235,3439.7,3439.6,0.88633]
[1754194085296,0.6473,3439.9,3439.6,0.88633]
[1754194085497,1.04183645,3440.3,3440.2,0.88623]
[1754194085697,0.3235,3440.4,3440.3,0.7849]
[1754194087003,1.8631,3440.1,3440.0,0.7849]
[1754194088804,1.8631,3440.1,3440.0,0.3048]
[1754194089003,3.17536019,3440.1,3439.6,3.2078]
[1754194089217,1.8631,3439.8,3439.7,0.7849]
[1754194090703,1.8631,3439.8,3439.6,3.2078]
[1754194090704,0.7293,3439.8,3439.6,3.2078]
[1754194090900,1.8631,3439.7,3439.6,3.5126]
[1754194091611,1.8631,3439.7,3439.6,3.9927]
[1754194092208,1.1338,3439.6,3439.2,3.2078]
[1754194092407,1.8631,3439.3,3439.2,3.5126]
[1754194092610,1.8631,3439.3,3438.8,3.2078]
[1754194092913,1.3766,3438.9,3438.8,3.9927]
[1754194094216,1.0576,3438.9,3438.8,3.9927]
[1754194094710,0.8513,3438.9,3438.8,3.9927]
[1754194096117,0.6473,3438.9,3438.8,3.9927]
[1754194096908,0.7293,3439.3,3439.2,1.36649]
[1754194097213,0.3235,3439.3,3439.2,1.36649]
[1754194097417,0.3235,3439.3,3439.2,4.57429]
[1754194098513,0.5278,3439.6,3439.5,1.36645]
[1754194098708,0.8103,3439.8,3439.2,3.2078]
[1754194098913,1.8631,3439.5,3439.4,1.36647]
[1754194101114,0.3235,3439.5,3439.4,1.36647]
[1754194101520,0.58135,3440.7,3439.4,1.36647]
[1754194101521,1.8631,3440.0,3439.9,0.88628]
[1754194102121,0.3235,3440.0,3439.9,1.36638]
[1754194102322,0.3235,3440.0,3439.9,1.38418]
[1754194103316,0.204,3440.3,3440.2,0.89723]
[1754194103519,1.8631,3440.3,3440.2,0.89723]
[1754194103718,1.3766,3440.3,3440.2,0.89723]
[1754194103923,1.0576,3440.3,3440.2,1.38073]
[1754194105720,0.3238,3440.9,3440.6,0.58135]
[1754194105921,1.8631,3440.7,3440.6,0.89715]
[1754194106424,1.8631,3440.7,3440.6,1.37725]
[1754194106726,1.8631,3440.7,3440.6,1.38065]
[1754194107419,3.9416,3441.0,3440.9,0.89711]
[1754194107623,3.2078,3441.0,3440.9,1.38061]
[1754194107820,1.8631,3441.3,3441.0,0.58129]
[1754194108124,1.8631,3441.1,3441.0,0.88609]
[1754194108324,0.8103,3441.0,3440.5,3.6879]
[1754194108524,1.8631,3440.6,3440.5,24.57108]
[1754194108724,1.8631,3440.6,3440.5,4.0037]
[1754194108918,1.8631,3440.6,3440.5,3.2078]
[1754194110616,0.7293,3440.6,3440.1,19.99]
[1754194110824,1.8631,3440.2,3440.1,0.7849]
[1754194111725,1.8631,3440.2,3440.1,0.7959]
[1754194111921,1.3766,3440.2,3440.1,0.7967]
[1754194112120,0.2014,3440.6,3440.5,0.58407]
[1754194112427,1.0313,3440.6,3440.5,1.36917]
[1754194112726,1.803,3440.6,3440.5,1.36917]
[1754194113428,1.803,3440.6,3440.5,0.7857]
[1754194113621,1.803,3440.6,3440.5,0.7843]
[1754194115123,1.803,3440.6,3440.5,0.7878]
[1754194115821,1.3516,3440.6,3440.5,0.7878]
[1754194116332,1.803,3440.6,3440.5,0.7878]
[1754194117028,0.3203,3440.6,3440.5,0.7878]
[1754194117729,0.6191,3440.6,3440.5,0.7878]
[1754194118225,1.04,3440.6,3440.5,0.7878]
[1754194118430,1.803,3440.6,3440.5,0.7878]
[1754194123429,3.6592,3441.2,3440.5,0.7878]
[1754194123635,1.803,3441.1,3441.0,0.7843]
[1754194124626,0.7325,3441.1,3440.9,0.58131]
[1754194124929,1.803,3441.0,3440.9,1.03641]
[1754194125634,1.803,3441.0,3440.9,1.36561]
[1754194125828,1.3516,3441.0,3440.9,1.36561]
[1754194126031,1.803,3441.0,3440.9,1.36911]
[1754194126731,1.803,3441.0,3440.9,1.36701]
[1754194128435,1.2847,3441.0,3440.9,1.36701]
[1754194128736,1.803,3441.0,3440.9,1.36831]
[1754194128936,1.803,3441.0,3440.9,1.36911]
[1754194129540,1.803,3441.0,3440.9,1.36831]
[1754194129930,0.6191,3441.0,3440.9,1.36911]
[1754194130334,0.8205,3441.0,3440.9,1.36911]
[1754194130933,1.803,3441.0,3440.9,1.36911]
[1754194131535,0.3203,3441.0,3440.9,1.36911]
[1754194131726,0.8205,3441.0,3440.9,1.36911]
[1754194132031,1.803,3441.0,3440.9,1.36911]
[1754194140233,1.803,3441.0,3440.5,1.86460019]
[1754194140234,1.803,3441.0,3440.5,0.58137]
[1754194140452,0.4209,3440.5,3440.0,3.2078]
[1754194140735,3.2078,3441.2,3440.0,3.2078]
[1754194140736,1.803,3440.1,3440.0,3.2078]
[1754194141532,0.7338,3439.7,3439.6,3.7189]
[1754194141843,1.8438,3439.7,3439.6,4.7085]
[1754194142039,1.8438,3439.7,3439.6,5.29003]
[1754194142936,1.8438,3440.0,3439.9,1.61147]
[1754194143243,0.3133,3440.0,3439.9,1.92217]
[1754194143634,0.8383,3440.3,3440.2,2.39283]
[1754194143938,1.8438,3440.3,3440.0,0.58146]
[1754194144145,1.8438,3439.7,3439.6,3.9833]
[1754194145641,1.8438,3439.7,3439.6,4.7085]
[1754194145837,0.3133,3440.1,3439.7,0.58151]
[1754194146041,1.8438,3440.1,3440.0,1.1856]
[1754194146429,3.8305,3440.4,3440.1,0.58145]
[1754194146727,3.9416,3440.4,3440.3,1.5007]
[1754194146932,3.9416,3440.4,3440.3,1.1856]
[1754194147228,1.8438,3440.0,3439.9,0.7149]
[1754194147434,1.8438,3440.0,3439.9,0.3048]
[1754194148830,1.8438,3440.0,3439.9,0.7755]
[1754194149341,0.3133,3440.2,3440.1,0.8218]
[1754194149539,0.3133,3440.2,3440.1,3.67600019]
[1754194150435,1.043,3440.2,3440.1,1.8114]
[1754194150636,1.3565,3440.2,3440.1,1.8114]
[1754194150942,1.8438,3440.2,3440.1,1.5007]
[1754194152142,0.7338,3440.7,3440.6,0.7149]
[1754194152440,0.7338,3440.7,3440.6,1.5007]
[1754194152943,0.3133,3440.7,3440.6,1.5007]
[1754194153142,0.3133,3440.7,3440.6,1.8114]
[1754194153344,3.7367,3440.9,3440.8,1.8114]
[1754194154042,3.5211,3440.9,3440.8,1.8114]
[1754194154435,3.7367,3440.9,3440.8,1.8114]
[1754194154642,4.2508,3440.9,3440.8,1.8114]
[1754194155739,3.7367,3440.9,3440.8,1.8114]
[1754194155941,3.5211,3440.9,3440.8,1.8114]
[1754194156544,3.7367,3440.9,3440.8,1.8114]
[1754194156842,0.3133,3440.9,3440.8,1.8114]
[1754194157038,1.2211,3441.2,3441.1,0.7149]
[1754194157239,0.2156,3441.3,3441.2,2.39266]
[1754194157745,0.5289,3441.3,3441.2,2.39266]
[1754194157943,3.2078,3441.5,3441.2,1.60686]
[1754194158132,3.2078,3441.5,3441.4,2.39263]
[1754194158341,1.8438,3441.8,3441.6,0.58119]
[1754194158644,1.8438,3441.7,3441.6,0.58119]
[1754194159348,1.8438,3441.6,3441.5,0.5812]
[1754194160241,1.8438,3441.6,3441.5,0.886]
[1754194160752,1.8438,3441.6,3441.5,1.3567]
[1754194161042,1.8438,3441.6,3441.5,1.563]
[1754194161244,0.7338,3441.4,3441.3,3.2078]
[1754194161437,1.8438,3441.4,3441.3,3.2078]
[1754194162040,1.8438,3441.4,3441.3,3.9833]
[1754194162637,4.2078,3442.0,3441.4,0.58123]
[1754194162841,0.7338,3441.5,3441.4,1.60683]
[1754194163042,1.8438,3441.5,3441.4,1.60683]
[1754194163446,1.8438,3441.5,3441.4,2.39263]
[1754194164742,1.8438,3441.5,3441.4,2.08193]
[1754194164943,1.8438,3441.5,3441.4,1.5007]
[1754194168254,0.3133,3441.5,3441.4,1.8114]
[1754194169440,0.8383,3441.5,3441.4,1.8114]
[1754194169749,1.8438,3441.5,3441.4,1.8114]
[1754194170245,1.3565,3441.9,3441.8,1.1959]
[1754194170453,1.3565,3441.9,3441.8,1.5007]
[1754194170454,1.8438,3441.9,3441.8,1.5007]
[1754194170651,1.8438,3441.9,3441.8,1.1856]
[1754194172148,1.8438,3441.9,3441.8,1.76676]
[1754194174150,1.8438,3441.9,3441.8,1.56296]
[1754194177250,1.8438,3441.9,3441.7,3.78897]
[1754194177555,1.8395,3441.3,3441.2,23.75806]
[1754194178255,1.8395,3441.3,3441.2,3.78906]
[1754194182151,1.8395,3441.3,3441.2,4.09376]
[1754194182356,1.8395,3441.3,3441.2,5.29176]
[1754194183854,1.8395,3441.7,3441.6,0.58118]
[1754194184057,1.8395,3441.7,3441.6,1.36108]
[1754194184553,1.8395,3441.7,3441.6,0.88588]
[1754194184762,1.8395,3441.7,3441.2,3.514]
[1754194184763,1.8395,3441.6,3441.3,0.58124]
[1754194185057,1.8395,3441.4,3441.3,1.36114]
[1754194185256,1.8395,3441.4,3441.3,0.58124]
[1754194186257,1.8395,3441.4,3441.3,1.56004]
[1754194186559,1.8395,3441.4,3441.3,2.08394]
[1754194187460,1.8395,3441.4,3441.3,0.88594]
[1754194187655,1.8395,3441.4,3441.3,0.58124]
[1754194188360,1.8395,3441.4,3441.2,3.78906]
[1754194188361,0.7413,3441.4,3441.2,3.78906]
[1754194188662,1.8395,3441.3,3441.2,3.78906]
[1754194189361,1.8395,3441.3,3441.2,3.2078]
[1754194190864,0.7413,3441.3,3441.1,20.54927]
[1754194191052,1.8395,3441.2,3441.1,21.52807]
[1754194192561,1.8395,3441.2,3441.1,21.85257]
[1754194194961,1.8395,3441.2,3441.1,22.05197]
[1754194197269,1.8395,3441.2,3441.1,22.35817]
[1754194199664,1.8395,3441.2,3441.1,22.05197]
[1754194200582,1.8395,3441.2,3441.1,2.08397]
[1754194200775,1.8395,3441.2,3441.1,22.05197]
[1754194201176,1.8395,3441.2,3441.1,2.08397]
[1754194201375,1.8395,3441.2,3441.1,21.72647]
[1754194201872,1.8119,3440.9,3440.8,3.2078]
[1754194204385,1.0839,3440.8,3440.4,21.00878]
[1754194204678,1.8119,3440.5,3440.4,21.31318]
[1754194205385,1.8119,3440.5,3440.4,21.52238]
[1754194205683,1.8119,3440.5,3440.4,21.60997999]
[1754194205887,1.8119,3440.5,3440.4,22.13157999]
[1754194206083,1.8119,3440.8,3440.7,1.75374]
[1754194206289,1.8119,3440.8,3440.7,2.07694]
[1754194206584,1.8119,3440.8,3440.7,2.16453999]
[1754194206784,1.8119,3440.8,3440.7,1.84133999]
[1754194207979,1.8119,3440.8,3440.7,1.43373999]
[1754194209078,0.2988,3440.8,3440.7,1.84133999]
[1754194209288,0.2988,3440.8,3440.7,2.49333999]
[1754194209679,3.5066,3441.0,3440.9,0.58131]
[1754194209884,3.5066,3441.0,3440.9,2.40571]
[1754194210084,4.2485,3441.0,3440.9,2.40571]
[1754194210288,5.0197,3441.0,3440.9,2.40571]
[1754194210685,5.0197,3441.0,3440.9,2.49330999]
[1754194211190,5.0197,3441.0,3440.9,0.08759999]
[1754194211390,6.88430019,3441.0,3440.9,0.08759999]
[1754194211890,5.0197,3441.0,3440.9,0.08759999]
[1754194212088,5.0197,3441.0,3440.9,1.06159999]
[1754194212790,3.2078,3441.0,3440.9,1.06159999]
[1754194212993,1.0268,3441.2,3441.1,0.712]
[1754194213183,1.8119,3441.2,3441.1,1.8244]
[1754194213688,1.8119,3441.2,3441.1,1.91199999]
[1754194213988,1.8119,3441.2,3441.1,0.08759999]
[1754194216084,1.8119,3441.2,3441.1,1.06159999]
[1754194217791,1.8119,3441.2,3441.1,0.08759999]
[1754194221999,2.65973998,3441.2,3441.1,0.08759999]
[1754194223092,1.8119,3441.2,3441.1,0.08759999]
[1754194223286,2.65975455,3441.2,3441.1,0.08759999]
[1754194227199,1.8119,3440.4,3440.3,1.1724]
[1754194227497,1.8119,3440.4,3440.3,1.4956]
[1754194228200,1.8119,3440.4,3440.3,1.8244]
[1754194232888,3.9462,3440.7,3440.6,0.7254]
[1754194233089,0.428,3441.0,3440.9,1.8161]
[1754194233289,0.428,3441.0,3440.9,0.3191]
[1754194233290,2.38688979,3441.0,3440.9,0.3191]
[1754194233496,2.68788979,3441.0,3440.9,0.8004]
[1754194233792,2.68788979,3441.0,3440.9,0.3191]
[1754194234399,1.58688979,3441.0,3440.7,0.7914]
[1754194234591,1.8394,3440.8,3440.7,1.3158]
[1754194234792,0.7384,3440.8,3440.6,0.4813]
[1754194234996,1.8394,3440.7,3440.6,0.4813]
[1754194235199,1.8394,3440.7,3440.6,1.0057]
[1754194235698,5.0472,3440.7,3440.6,1.0057]
[1754194235995,5.0472,3440.7,3440.6,1.3158]
[1754194236194,5.0472,3440.7,3440.6,1.5168]
[1754194236389,5.0472,3440.7,3440.6,0.5244]
[1754194236800,5.0472,3440.7,3440.6,1.0057]
[1754194237599,5.0472,3440.7,3440.6,1.2067]
[1754194238306,5.0472,3440.7,3440.6,1.5168]
[1754194240303,5.0472,3440.7,3440.6,1.8161]
[1754194240699,3.5088,3440.7,3440.6,1.8161]
[1754194240901,4.0303,3440.7,3440.6,1.8161]
[1754194241200,5.0472,3440.7,3440.6,1.8161]
[1754194242303,3.7199,3440.7,3440.6,1.8161]
[1754194242504,3.2078,3440.7,3440.6,1.8161]
[1754194244102,3.5088,3440.7,3440.6,1.8161]
[1754194244413,5.0472,3440.7,3440.6,1.8161]
[1754194246103,5.0472,3440.7,3440.2,1.8161]
[1754194246104,0.7384,3440.3,3440.2,1.8161]
[1754194246298,1.8394,3440.3,3440.2,1.506]
[1754194246605,1.8394,3440.3,3440.2,1.8161]
[1754194246801,1.3498,3440.3,3440.2,1.8161]
[1754194247200,1.8394,3440.3,3440.2,1.8161]
[1754194248002,1.8394,3440.3,3440.2,0.2053]
[1754194248203,1.5384,3440.2,3440.1,3.2078]
[1754194248510,1.8394,3440.2,3440.1,4.7246]
[1754194248903,1.8394,3440.2,3440.1,5.0239]
[1754194251706,1.8394,3440.2,3440.1,1.8161]
[1754194252005,1.101,3440.6,3440.2,0.4813]
[1754194252204,1.8394,3440.6,3440.5,1.8161]
[1754194252710,1.8394,3440.6,3440.5,1.5168]
[1754194253302,1.8394,3440.6,3440.5,1.0057]
[1754194253905,1.8394,3440.6,3440.5,0.3191]
[1754194254114,1.8394,3440.6,3440.5,0.8004]
[1754194256413,2.6885782,3440.6,3440.5,0.8004]
[1754194257314,0.7384,3440.3,3440.2,0.4813]
[1754194257513,1.8394,3440.3,3440.2,1.3158]
[1754194257713,1.8394,3440.3,3440.2,1.5168]
[1754194258112,0.7384,3440.3,3440.0,0.3101]
[1754194258414,1.8394,3439.8,3439.7,2.39761]
[1754194259915,1.8394,3439.8,3439.7,1.8161]
[1754194260213,1.3498,3439.8,3439.7,1.8161]
[1754194260413,3.70400019,3439.8,3439.7,1.0057]
[1754194260713,1.89951,3439.2,3439.1,0.3191]
[1754194260905,1.89951,3439.2,3438.4,45.51438142]
[1754194260906,7.18301019,3439.2,3438.9,0.4813]
[1754194261104,2.42103,3439.0,3438.9,1.0057]
[1754194261306,1.8394,3439.0,3438.9,1.3158]
[1754194261519,1.8394,3439.0,3438.9,1.5168]
[1754194261816,1.8394,3439.0,3438.9,1.8389]
[1754194262418,3.2078,3439.2,3439.1,1.803]
[1754194262609,1.8321,3439.2,3439.1,1.803]
[1754194264812,0.1984,3439.5,3439.4,0.5006]
[1754194265017,0.8198,3439.5,3439.4,0.7181]
[1754194265418,0.8198,3439.5,3439.4,1.803]
[1754194265619,1.3532,3439.5,3439.4,1.803]
[1754194265811,1.8321,3439.5,3439.4,1.803]
[1754194267418,1.3532,3439.5,3439.4,1.803]
[1754194267821,1.8321,3439.5,3439.4,1.803]
[1754194268012,1.8321,3439.5,3439.4,1.4809]
[1754194269918,3.2078,3439.6,3439.4,2.06246]
[1754194270124,3.2078,3439.6,3439.5,1.803]
[1754194271016,3.5149,3439.6,3439.5,1.803]
[1754194271922,3.8292,3439.6,3439.5,1.803]
[1754194272326,3.5149,3439.6,3439.5,1.803]
[1754194273124,3.8292,3439.6,3439.5,1.803]
[1754194276430,4.0276,3439.6,3439.5,1.803]
[1754194277838,4.2393,3439.6,3439.5,1.803]
[1754194278024,4.2393,3439.6,3439.2,0.58159]
[1754194278327,1.8321,3439.3,3439.2,1.4809]
[1754194278730,1.8321,3439.3,3439.2,1.803]
[1754194280226,3.2078,3439.6,3439.5,1.803]
[1754194280434,3.8292,3439.6,3439.5,1.803]
[1754194280729,4.0276,3439.6,3439.5,1.803]
[1754194281133,4.2393,3439.6,3439.5,1.803]
[1754194281433,5.0399,3439.6,3439.5,1.803]
[1754194282031,5.0399,3439.6,3439.2,0.88379]
[1754194282032,0.7318,3439.3,3439.2,0.88379]
[1754194282329,1.8321,3439.3,3439.2,1.75829]
[1754194282631,1.8321,3439.3,3439.2,2.38459]
[1754194284437,1.3532,3439.3,3439.2,2.38459]
[1754194284625,1.0315,3439.3,3439.2,2.38459]
[1754194285630,1.8321,3439.3,3439.2,2.38459]
[1754194289930,1.3532,3439.3,3439.2,2.38459]
[1754194290129,1.3532,3439.3,3438.8,3.2078]
[1754194290130,1.3266,3439.5,3439.4,1.62175]
[1754194290336,1.8321,3439.5,3439.4,1.62175]
[1754194290636,1.8321,3439.5,3439.4,2.38455]
[1754194291235,3.6179,3439.7,3439.6,1.29963]
[1754194291540,4.561,3439.7,3439.6,2.38453]
[1754194291729,5.0297,3439.7,3439.6,2.38453]
[1754194292038,5.0297,3439.7,3439.6,1.1767]
[1754194292238,5.0297,3439.7,3439.6,0.9592]
[1754194292433,3.9396,3439.7,3439.1,0.4816]
[1754194292640,3.9396,3439.7,3439.0,0.2978]
[1754194292641,1.0888,3439.1,3439.0,0.2978]
[1754194292830,1.7946,3438.9,3438.8,3.2078]
[1754194293338,1.7946,3438.9,3438.8,3.9872]
[1754194293543,1.7946,3438.9,3438.6,1.06329]
[1754194293837,0.7058,3438.8,3438.7,0.2978]
[1754194294038,1.7946,3438.8,3438.7,0.9948]
[1754194296734,0.7058,3438.6,3438.5,1.36111]
[1754194296935,1.7946,3438.6,3438.5,2.11461]
[1754194297238,1.7946,3438.6,3438.5,1.5329]
[1754194297438,1.7946,3438.6,3438.5,1.2085]
[1754194298040,1.7946,3438.6,3438.5,1.5329]
[1754194299642,1.7946,3438.6,3438.5,1.2085]
[1754194301344,1.7946,3438.6,3438.5,1.8499]
[1754194301734,3.2078,3439.1,3438.3,3.2078]
[1754194301735,3.2078,3439.1,3438.7,0.58168]
[1754194302049,3.4099,3439.1,3439.0,2.43153]
[1754194302344,4.2317,3439.1,3439.0,2.43153]
[1754194302546,3.9136,3439.1,3438.8,0.90605]
[1754194302844,1.3259,3438.9,3438.8,1.63295]
[1754194303141,1.7946,3438.9,3438.8,1.94995]
[1754194303342,1.7946,3438.9,3438.8,2.43155]
[1754194303731,3.2078,3439.1,3438.8,1.30855]
[1754194303938,0.5031,3439.4,3439.3,1.30848]
[1754194304137,0.8222,3439.4,3439.3,2.43148]
[1754194304639,0.5037,3439.2,3439.1,0.87941]
[1754194304844,1.7946,3439.2,3439.1,1.57641]
[1754194305940,1.7946,3439.2,3439.1,0.9948]
[1754194306447,1.7946,3439.2,3438.9,0.3244]
[1754194306648,0.7058,3438.9,3438.8,1.79015]
[1754194306841,1.7946,3438.9,3438.8,2.11455]
[1754194307144,1.7946,3438.9,3438.8,2.43155]
[1754194314052,1.7946,3438.8,3438.7,0.58168]
[1754194314352,1.7946,3438.8,3438.7,1.36108]
[1754194314550,1.7946,3438.8,3438.7,2.11458]
[1754194314853,1.7946,3438.8,3438.7,2.43158]
[1754194318754,1.7946,3439.1,3439.0,2.43153]
[1754194318956,1.7946,3439.1,3439.0,1.8499]
[1754194319151,1.7946,3439.1,3439.0,1.5329]
[1754194319757,1.2738,3439.0,3438.9,0.58164]
[1754194320056,1.7946,3439.0,3438.9,1.36104]
[1754194320358,1.7946,3439.0,3438.9,2.11454]
[1754194321561,1.7946,3439.0,3438.9,0.9948]
[1754194322452,0.7058,3439.0,3438.6,3.2078]
[1754194322654,1.8557,3438.7,3438.6,4.1912]
[1754194322853,1.8557,3438.7,3438.6,3.5183]
[1754194323055,1.8557,3438.7,3438.6,3.9722]
[1754194323956,0.7916,3439.3,3438.7,0.58168]
[1754194324266,1.8557,3438.9,3438.8,1.8239]
[1754194324558,1.8557,3438.9,3438.8,1.1827]
[1754194325061,1.8557,3438.9,3438.8,0.9834]
[1754194325861,1.8557,3438.9,3438.8,1.8239]
[1754194326253,0.7341,3438.9,3438.8,1.1827]
[1754194326455,1.8557,3438.8,3438.7,1.56508]
[1754194326653,1.86460019,3439.4,3438.9,1.78314]
[1754194326654,0.4094,3439.0,3438.9,1.78314]
[1754194326854,1.8557,3439.0,3438.9,2.40554]
[1754194328860,1.8557,3439.0,3438.9,1.8239]
[1754194329249,1.8557,3439.0,3438.9,1.512]
[1754194329448,1.1216,3438.9,3438.6,3.6617]
[1754194329653,1.8557,3438.7,3438.6,3.9722]
[1754194329855,1.1216,3438.6,3438.3,0.4539]
[1754194330063,1.8557,3438.4,3438.3,1.8239]
[1754194330860,1.8557,3438.4,3438.3,0.3105]
[1754194331061,1.8557,3438.4,3438.3,0.9834]
[1754194331258,1.8557,3438.4,3438.3,1.1827]
[1754194331454,1.8557,3438.4,3438.3,0.9834]
[1754194331862,1.8557,3438.4,3438.3,0.3105]
[1754194334270,1.8557,3438.4,3438.3,0.7644]
[1754194335870,1.8557,3438.4,3438.3,0.9834]
[1754194337264,0.7341,3438.0,3437.8,0.58183]
[1754194337464,3.2078,3438.4,3437.8,0.58183]
[1754194337465,1.6504,3437.9,3437.8,1.63993]
[1754194337666,1.8557,3437.9,3437.8,1.95183]
[1754194337962,1.8557,3437.9,3437.8,1.1827]
[1754194338164,1.8557,3437.9,3437.8,1.8239]
[1754194340874,1.0662,3437.9,3437.8,1.8239]
[1754194341175,1.8557,3437.9,3437.8,1.8239]
[1754194343771,1.3204,3438.3,3438.2,0.5295]
[1754194343963,1.04183645,3439.3,3438.2,0.5295]
[1754194343964,3.8646,3438.9,3438.7,1.63977]
[1754194344169,3.8646,3438.9,3438.8,1.0581]
[1754194344472,4.5987,3438.9,3438.8,1.8239]
[1754194344670,5.0635,3438.9,3438.8,1.512]
[1754194346472,5.0635,3438.9,3438.8,0.3105]
[1754194346673,1.8557,3438.7,3438.1,3.2078]
[1754194346878,0.7341,3438.3,3438.2,0.9834]
[1754194347175,0.7341,3438.3,3438.2,1.512]
[1754194347375,1.5257,3438.3,3438.2,1.512]
[1754194347576,1.8557,3438.3,3438.2,1.512]
[1754194348480,1.8557,3438.3,3438.2,1.8239]
[1754194348781,1.3909,3438.3,3438.2,1.8239]
[1754194349577,1.8557,3438.6,3438.5,1.8239]
[1754194349774,1.3909,3438.6,3438.5,1.8239]
[1754194350279,1.531,3438.8,3438.7,1.8239]
[1754194350580,1.8557,3438.8,3438.7,1.8239]
[1754194351583,1.3909,3438.8,3438.7,1.8239]
[1754194352082,1.8664,3438.8,3438.7,1.8239]
[1754194353282,0.5166,3438.6,3438.5,0.4478]
[1754194353475,1.8227,3438.6,3438.5,0.9723]
[1754194353674,1.8227,3438.6,3438.5,1.5113]
[1754194353875,1.8227,3438.6,3438.5,1.8272]
[1754194355283,1.3472,3438.6,3438.5,1.8272]
[1754194355683,1.8227,3438.6,3438.5,1.8272]
[1754194355882,1.8227,3438.6,3438.3,0.58175]
[1754194356085,1.8227,3438.5,3438.4,0.9723]
[1754194356285,1.8227,3438.5,3438.4,1.1848]
[1754194356582,1.8227,3438.5,3438.4,0.5245]
[1754194356784,1.8227,3438.5,3438.4,0.3148]
[1754194356975,0.7204,3438.5,3438.2,1.35606]
[1754194357175,1.8227,3438.3,3438.2,1.88056]
[1754194357784,1.8227,3438.3,3438.2,2.09306]
[1754194358374,0.3021,3438.8,3438.6,0.58168]
[1754194358579,1.8227,3438.7,3438.6,2.40888]
[1754194359390,0.7215,3438.7,3438.6,2.40888]
[1754194359588,1.8227,3438.7,3438.6,2.40888]
[1754194360386,0.7204,3438.2,3438.1,4.52659]
[1754194360688,1.8227,3438.2,3438.1,5.30089]
[1754194360886,1.8227,3438.2,3438.1,5.61679]
[1754194361088,1.8227,3438.2,3438.1,2.40899]
[1754194361586,1.0462,3438.2,3438.1,2.40899]
[1754194361787,1.8227,3438.5,3438.4,1.31873]
[1754194362086,1.8227,3438.5,3438.4,2.40893]
[1754194364893,1.8227,3438.5,3438.4,2.09303]
[1754194368296,1.8227,3438.5,3438.4,2.40893]
[1754194369696,1.8227,3438.5,3438.4,2.09303]
[1754194372191,1.6189,3438.4,3438.3,0.58175]
[1754194372397,1.8227,3438.4,3438.3,0.58175]
[1754194372594,1.8227,3438.3,3438.2,1.55406]
[1754194373095,1.8227,3438.3,3438.2,1.88056]
[1754194373701,1.8227,3438.3,3438.2,1.55406]
[1754194374002,1.8227,3438.3,3438.0,3.5237]
[1754194374003,2.58500019,3438.3,3438.1,0.58178]
[1754194374299,1.8227,3438.2,3438.1,0.58178]
[1754194377491,1.8227,3438.2,3438.0,3.7896]
[1754194378014,1.8227,3438.1,3438.0,4.5522]
[1754194379104,1.8227,3438.1,3438.0,3.2078]
[1754194379901,1.8227,3438.1,3438.0,3.6556]
[1754194380493,1.8227,3438.1,3438.0,3.2078]
[1754194381204,1.0225,3437.6,3437.5,3.9448]
[1754194381407,1.0225,3437.6,3437.5,4.7191]
[1754194381408,1.8227,3437.6,3437.5,4.7191]
[1754194381704,1.8227,3437.6,3437.5,3.9666]
[1754194381903,1.8227,3437.6,3437.5,0.9664]
[1754194382296,1.8227,3437.6,3437.5,1.4844]
[1754194383305,0.744,3437.7,3437.6,1.32397]
[1754194383610,1.828,3437.7,3437.6,1.63287]
[1754194383905,1.828,3437.7,3437.6,1.8116]
[1754194384907,1.3786,3437.7,3437.6,1.8116]
[1754194385713,1.828,3437.7,3437.6,1.8116]
[1754194387098,0.6346,3438.0,3437.7,1.0878]
[1754194387304,0.744,3438.0,3437.9,0.7238]
[1754194387504,0.744,3438.0,3437.9,1.8116]
[1754194387806,3.2078,3438.1,3437.9,2.06621]
[1754194388011,4.5864,3438.1,3438.0,1.8116]
[1754194388213,5.0358,3438.1,3438.0,1.8116]
[1754194392205,1.828,3438.1,3438.0,1.8116]
[1754194393812,1.828,3438.1,3438.0,1.1737]
[1754194394012,1.828,3438.1,3438.0,1.8116]
[1754194395519,1.828,3438.1,3438.0,1.4844]
[1754194399110,1.828,3438.1,3438.0,1.8116]
[1754194402316,1.828,3438.1,3438.0,1.5009]
[1754194402514,1.828,3438.1,3438.0,1.8116]
[1754194407121,1.828,3438.1,3438.0,1.4844]
[1754194411423,1.3786,3437.7,3437.6,2.39347]
[1754194411723,1.8539,3437.7,3437.6,2.39347]
[1754194414424,1.8539,3437.7,3437.6,2.06627]